bitfinex-derivatives/quotes_BTCF0:USTF0_20250718
["timestamp","ask_amount","ask_price","bid_price","bid_amount"]
[1752852222961,0.4011923,117570.0,117560.0,1.5763997]
[1752852223261,0.4011923,117570.0,117560.0,1.0704125]
[1752852223762,0.23117,117570.0,117560.0,1.0704125]
[1752852223958,0.23117,117570.0,117560.0,1.0785025]
[1752852224460,0.4021923,117570.0,117560.0,1.0785025]
[1752852224656,0.23417,117570.0,117560.0,1.0785025]
[1752852224856,0.4041923,117570.0,117560.0,1.4393025]
[1752852225062,0.12417,117570.0,117560.0,1.4393025]
[1752852225255,0.12417,117570.0,117560.0,1.9452897]
[1752852225656,0.003,117570.0,117560.0,1.9452897]
[1752852225857,0.003,117570.0,117560.0,1.4393025]
[1752852226064,0.2941923,117570.0,117560.0,1.3963534]
[1752852226955,6.681e-05,117580.0,117560.0,1.218228]
[1752852227264,0.2911489,117600.0,117590.0,0.2674833]
[1752852227559,0.1699789,117600.0,117590.0,1.8566705]
[1752852227864,0.4186276,117610.0,117600.0,0.2623789]
[1752852228557,0.1699789,117600.0,117590.0,0.6282746]
[1752852228757,0.2911489,117600.0,117590.0,1.3454246]
[1752852229264,0.2911489,117600.0,117590.0,1.3505146]
[1752852229862,0.2911489,117600.0,117590.0,0.6282746]
[1752852230060,0.2911489,117600.0,117590.0,1.3453046]
[1752852230263,0.2911489,117600.0,117590.0,1.3452646]
[1752852230763,0.2911489,117600.0,117590.0,0.6231846]
[1752852230966,0.2911489,117600.0,117590.0,1.3451846]
[1752852232661,0.3479133,117590.0,117580.0,0.6476434]
[1752852232866,0.3688933,117590.0,117580.0,0.9660677]
[1752852233065,0.3688933,117590.0,117580.0,1.0584677]
[1752852233766,0.3278681,117600.0,117590.0,0.3418232]
[1752852234075,0.3488481,117600.0,117590.0,0.3418232]
[1752852234366,0.7761781,117600.0,117590.0,0.16674]
[1752852234569,0.8821781,117600.0,117590.0,0.07434]
[1752852234862,0.3688933,117590.0,117580.0,0.16674]
[1752852235068,0.3688933,117590.0,117580.0,0.9658678]
[1752852235273,0.3688933,117590.0,117580.0,1.0168578]
[1752852235468,0.3688933,117590.0,117580.0,1.0581478]
[1752852235965,0.3688933,117590.0,117580.0,1.564135]
[1752852236165,0.1999,117590.0,117580.0,1.564135]
[1752852236361,0.3698933,117590.0,117580.0,1.564135]
[1752852236569,0.2029,117590.0,117580.0,1.0581478]
[1752852236768,0.3728933,117590.0,117580.0,1.0581478]
[1752852237071,0.10419,117590.0,117580.0,1.0632378]
[1752852237458,0.3063633,117590.0,117580.0,1.0632378]
[1752852237658,0.3063633,117590.0,117580.0,1.0581478]
[1752852237659,0.3728933,117590.0,117580.0,1.0581478]
[1752852237868,0.3728933,117590.0,117580.0,1.0578678]
[1752852238068,0.3728933,117590.0,117580.0,1.0577878]
[1752852238367,0.3728933,117590.0,117580.0,1.0164978]
[1752852238567,0.3728933,117590.0,117580.0,0.2954578]
[1752852238770,0.3728933,117590.0,117580.0,1.0164178]
[1752852239170,0.3728933,117590.0,117580.0,0.2954578]
[1752852239364,0.3728933,117590.0,117580.0,1.0576678]
[1752852239668,0.3728933,117590.0,117580.0,1.0575878]
[1752852240670,0.3728933,117590.0,117580.0,0.3367478]
[1752852240868,0.9888805,117590.0,117580.0,0.12545]
[1752852241069,0.9888805,117590.0,117580.0,0.07434]
[1752852241275,0.3736823,117570.0,117560.0,0.40587036]
[1752852241572,0.4836823,117570.0,117560.0,0.13366]
[1752852241770,0.4836823,117570.0,117560.0,0.07874]
[1752852241771,0.8444823,117570.0,117560.0,0.07874]
[1752852242166,0.8444823,117570.0,117560.0,0.2487767]
[1752852242572,0.8444823,117570.0,117560.0,0.04224]
[1752852243072,0.3068367,117560.0,117550.0,0.77652433]
[1752852243271,0.7344967,117560.0,117550.0,0.20316963]
[1752852243472,0.7344967,117560.0,117550.0,0.31830083]
[1752852243773,0.7344967,117560.0,117550.0,0.25741437]
[1752852244178,0.8444967,117560.0,117550.0,0.25741437]
[1752852244376,0.8444967,117560.0,117550.0,0.08736317]
[1752852244571,0.8444967,117560.0,117550.0,0.25741437]
[1752852244974,0.4836967,117560.0,117550.0,0.41451083]
[1752852245471,0.4836967,117560.0,117550.0,0.37322083]
[1752852245877,0.4846967,117560.0,117550.0,0.31930083]
[1752852246278,0.4866967,117560.0,117550.0,0.31930083]
[1752852247276,0.4866967,117560.0,117550.0,0.10423171]
[1752852247473,0.4866967,117560.0,117550.0,0.06199171]
[1752852247679,0.4866967,117560.0,117550.0,0.23204291]
[1752852247881,0.4866967,117560.0,117550.0,0.06199171]
[1752852248080,0.8474967,117560.0,117550.0,0.06199171]
[1752852248780,1.3524839,117560.0,117550.0,0.06099171]
[1752852248979,1.3534839,117560.0,117550.0,0.06099171]
[1752852249385,1.3514839,117560.0,117550.0,0.06099171]
[1752852249589,1.3534839,117560.0,117550.0,0.23104281]
[1752852249892,0.8474967,117560.0,117550.0,0.23104281]
[1752852250296,0.8474967,117560.0,117550.0,0.06099171]
[1752852250695,1.6834839,117560.0,117550.0,0.06099171]
[1752852250994,1.3534839,117560.0,117550.0,0.06099171]
[1752852251192,0.8474967,117560.0,117550.0,0.17015645]
[1752852251394,0.8474967,117560.0,117550.0,0.06099171]
[1752852251596,1.3534839,117560.0,117550.0,0.00010525]
[1752852252198,0.8474967,117560.0,117550.0,0.17015635]
[1752852252692,1.3534839,117560.0,117550.0,0.00010525]
[1752852253092,0.8474967,117560.0,117550.0,0.00010525]
[1752852253290,1.3534839,117560.0,117550.0,0.00010525]
[1752852253596,1.7234839,117560.0,117550.0,0.00010525]
[1752852254794,1.2174967,117560.0,117550.0,0.00010525]
[1752852254993,1.7234839,117560.0,117550.0,0.00010525]
[1752852255497,0.3737257,117540.0,117530.0,0.1700801]
[1752852255694,0.3737401,117530.0,117520.0,0.2462622]
[1752852255890,0.3737401,117530.0,117520.0,0.8510318]
[1752852256086,0.3043901,117530.0,117520.0,1.34395573]
[1752852256293,0.30449012,117530.0,117520.0,1.31457175]
[1752852256700,0.37384012,117530.0,117520.0,0.80197455]
[1752852256898,0.20376002,117530.0,117520.0,0.87814215]
[1752852257094,0.37384012,117530.0,117520.0,0.80197455]
[1752852257297,0.00010002,117530.0,117520.0,1.37561524]
[1752852257490,0.00010002,117530.0,117520.0,0.80858455]
[1752852257794,0.00210002,117530.0,117520.0,0.88475215]
[1752852257997,0.00210002,117530.0,117520.0,0.86962492]
[1752852258197,0.00210002,117530.0,117520.0,1.37561212]
[1752852258498,0.37584012,117530.0,117520.0,1.30796175]
[1752852258801,0.37584012,117530.0,117520.0,0.76068455]
[1752852258996,0.37584012,117530.0,117520.0,1.30796175]
[1752852258997,0.20576002,117530.0,117520.0,1.30796175]
[1752852259197,0.00210002,117530.0,117520.0,1.31457175]
[1752852259600,0.00210002,117530.0,117520.0,0.80858455]
[1752852259795,0.00310002,117530.0,117520.0,1.31557175]
[1752852260097,0.20676002,117530.0,117520.0,1.30896175]
[1752852260400,0.12670002,117530.0,117520.0,0.80905455]
[1752852260699,0.00310002,117530.0,117520.0,1.37608212]
[1752852261096,0.1236,117550.0,117540.0,0.2113356]
[1752852261401,0.2936512,117550.0,117540.0,0.79785555]
[1752852261596,0.4837112,117550.0,117540.0,0.16905995]
[1752852261797,0.8445112,117550.0,117540.0,0.26619555]
[1752852262002,0.8445112,117550.0,117540.0,0.27096555]
[1752852262397,0.8445112,117550.0,117540.0,0.33912555]
[1752852262593,0.8445112,117550.0,117540.0,0.16905995]
[1752852262795,1.3504984,117550.0,117540.0,0.09612995]
[1752852263000,1.7104984,117550.0,117540.0,0.09612995]
[1752852263198,1.7004984,117550.0,117540.0,0.09612995]
[1752852263402,1.7014984,117550.0,117540.0,0.09712995]
[1752852263596,0.8455112,117550.0,117540.0,0.09712995]
[1752852263901,1.6624984,117550.0,117540.0,0.09812995]
[1752852264096,1.1565112,117550.0,117540.0,0.09812995]
[1752852264298,0.8465112,117550.0,117540.0,0.09812995]
[1752852265004,1.2265112,117550.0,117540.0,0.09812995]
[1752852265305,0.8465112,117550.0,117540.0,0.09812995]
[1752852265503,1.3524984,117550.0,117540.0,0.09812995]
[1752852266102,0.8465112,117550.0,117540.0,0.09812995]
[1752852266296,1.3524984,117550.0,117540.0,0.09812995]
[1752852266493,0.8465112,117550.0,117540.0,0.26819555]
[1752852266691,0.4857112,117550.0,117540.0,1.30286275]
[1752852267002,0.4857112,117550.0,117540.0,0.79687555]
[1752852267297,0.20566,117550.0,117540.0,0.79687555]
[1752852267704,0.3757112,117550.0,117540.0,0.79687555]
[1752852268003,0.3757112,117550.0,117540.0,0.62680995]
[1752852268314,0.4857112,117550.0,117540.0,0.53185995]
[1752852268494,0.4857112,117550.0,117540.0,0.70192555]
[1752852269298,0.4857112,117550.0,117540.0,0.59287712]
[1752852269802,0.4857112,117550.0,117540.0,0.70192555]
[1752852269999,0.4472012,117550.0,117540.0,0.79687555]
[1752852270192,0.4857112,117550.0,117540.0,0.40214272]
[1752852270400,0.4857112,117550.0,117540.0,0.23207712]
[1752852270598,0.4857112,117550.0,117540.0,0.16391712]
[1752852270905,0.4857112,117550.0,117540.0,0.15914712]
[1752852271104,0.9916984,117550.0,117540.0,0.15914712]
[1752852271297,1.3416984,117550.0,117540.0,0.15914712]
[1752852271603,0.4857112,117550.0,117540.0,0.40264272]
[1752852272798,0.4857112,117550.0,117540.0,0.45562272]
[1752852272993,0.4857112,117550.0,117540.0,0.49691272]
[1752852273199,0.4857112,117550.0,117540.0,0.43589555]
[1752852273404,0.13631,117550.0,117540.0,0.94188275]
[1752852273600,0.13631,117550.0,117540.0,1.30542275]
[1752852273805,0.3608,117590.0,117540.0,1.30542275]
[1752852273806,0.5876847,117590.0,117580.0,0.1700078]
[1752852274006,0.28864978,117590.0,117580.0,0.697925]
[1752852274201,0.2693835,117590.0,117580.0,0.2449178]
[1752852274503,0.2753347,117590.0,117580.0,0.38233775]
[1752852274895,0.29460457,117590.0,117580.0,0.38233775]
[1752852275101,0.2803347,117590.0,117580.0,0.38233775]
[1752852275504,0.2823347,117590.0,117580.0,0.38233775]
[1752852275806,0.3047647,117590.0,117580.0,0.38233775]
[1752852276207,0.3240085,117590.0,117580.0,0.26613775]
[1752852276408,0.3240085,117590.0,117580.0,0.28806775]
[1752852276604,0.6848085,117590.0,117580.0,0.09612995]
[1752852276804,1.12380074,117590.0,117580.0,0.09612995]
[1752852277006,1.62978794,117590.0,117580.0,0.09612995]
[1752852277205,1.61054414,117590.0,117580.0,0.09612995]
[1752852277902,1.60554414,117590.0,117580.0,0.09712995]
[1752852278104,1.60654414,117590.0,117580.0,0.09712995]
[1752852278303,1.60554414,117590.0,117580.0,0.09812995]
[1752852280208,0.78955694,117590.0,117580.0,0.09812995]
[1752852280403,1.63554414,117590.0,117580.0,0.09812995]
[1752852281010,1.29554414,117590.0,117580.0,0.09812995]
[1752852281305,1.67554414,117590.0,117580.0,0.09812995]
[1752852281610,1.60554414,117590.0,117580.0,0.09812995]
[1752852282013,0.78955694,117590.0,117580.0,0.09812995]
[1752852282510,1.62554414,117590.0,117580.0,0.09812995]
[1752852284115,1.65554414,117590.0,117580.0,0.09812995]
[1752852284510,0.2497922,117570.0,117560.0,0.06109556]
[1752852284710,0.1700367,117560.0,117550.0,0.74484576]
[1752852284909,0.4651367,117560.0,117550.0,0.88096576]
[1752852285105,0.20753,117560.0,117550.0,0.88096576]
[1752852285310,0.3551367,117560.0,117550.0,1.38695296]
[1752852286416,0.3551367,117560.0,117550.0,0.88096576]
[1752852286617,0.1851,117560.0,117550.0,1.38695296]
[1752852286918,0.3551367,117560.0,117550.0,0.8198702]
[1752852287417,0.3551367,117560.0,117550.0,0.78568408]
[1752852287817,0.3551367,117560.0,117550.0,1.29167128]
[1752852288218,0.3581367,117560.0,117550.0,1.29367128]
[1752852288417,0.3581367,117560.0,117550.0,0.78768408]
[1752852288714,0.3561367,117560.0,117550.0,0.57412578]
[1752852288916,0.3571367,117560.0,117550.0,0.74517698]
[1752852290325,0.3571367,117560.0,117550.0,0.80627254]
[1752852290520,0.1871,117560.0,117550.0,1.31225974]
[1752852290721,0.002,117560.0,117550.0,1.31225974]
[1752852291222,0.10733,117560.0,117550.0,0.80627254]
[1752852291412,0.2773667,117560.0,117550.0,1.31225974]
[1752852291614,0.2773667,117560.0,117550.0,0.80627254]
[1752852292020,0.3571367,117560.0,117550.0,0.80627254]
[1752852292824,0.002,117560.0,117550.0,1.31225974]
[1752852293416,0.002,117560.0,117550.0,1.31216319]
[1752852294320,0.3571367,117560.0,117550.0,0.80617599]
[1752852294515,0.4671367,117560.0,117550.0,1.31216319]
[1752852294723,0.4895667,117560.0,117550.0,0.80617599]
[1752852295613,0.4671367,117560.0,117550.0,0.80617599]
[1752852295816,0.1871,117560.0,117550.0,1.31216319]
[1752852296018,0.2279167,117560.0,117550.0,1.25016418]
[1752852296225,0.2289167,117560.0,117550.0,1.25116418]
[1752852296426,0.2289167,117560.0,117550.0,0.74517698]
[1752852296727,0.2400667,117560.0,117550.0,1.32733178]
[1752852296925,0.3571367,117560.0,117550.0,1.25116418]
[1752852297827,0.3571367,117560.0,117550.0,0.74517698]
[1752852298029,0.3571367,117560.0,117550.0,1.25116418]
[1752852299026,0.3571367,117560.0,117550.0,0.74517698]
[1752852299229,0.3571367,117560.0,117550.0,1.25116418]
[1752852299828,0.3571367,117560.0,117550.0,0.74517698]
[1752852300030,0.3571367,117560.0,117550.0,1.25116418]
[1752852300329,0.3571367,117560.0,117550.0,0.74517698]
[1752852300530,0.3571367,117560.0,117550.0,1.25116418]
[1752852300725,0.3793467,117560.0,117550.0,0.49680754]
[1752852300930,1.6961339,117560.0,117550.0,0.07492578]
[1752852301528,0.4893467,117560.0,117550.0,0.30605874]
[1752852301828,0.4893467,117560.0,117550.0,0.44716874]
[1752852302229,0.4893467,117560.0,117550.0,0.27711754]
[1752852302428,0.8293467,117560.0,117550.0,0.27711754]
[1752852302623,0.4893467,117560.0,117550.0,0.33227698]
[1752852302826,0.4893467,117560.0,117550.0,0.44720068]
[1752852303033,0.4893467,117560.0,117550.0,0.38608698]
[1752852303430,0.4893467,117560.0,117550.0,0.21603578]
[1752852303629,0.4893467,117560.0,117550.0,0.33227698]
[1752852303931,0.4893467,117560.0,117550.0,0.33227688]
[1752852304335,0.4893467,117560.0,117550.0,0.38608688]
[1752852304832,0.4893467,117560.0,117550.0,0.46225448]
[1752852305032,0.4893467,117560.0,117550.0,0.72979342]
[1752852305332,0.8501467,117560.0,117550.0,0.22335699]
[1752852305729,0.8501467,117560.0,117550.0,0.21503121]
[1752852306034,0.8501467,117560.0,117550.0,0.01312]
[1752852306234,1.28773674,117560.0,117550.0,0.01312]
[1752852306635,1.28673674,117560.0,117550.0,0.01212]
[1752852306838,1.28773674,117560.0,117550.0,0.01212]
[1752852307129,1.61773674,117560.0,117550.0,0.06213121]
[1752852307330,1.61673674,117560.0,117550.0,0.06113121]
[1752852307528,1.61773674,117560.0,117550.0,0.06213121]
[1752852307933,1.1801467,117560.0,117550.0,0.06213121]
[1752852308133,1.61773674,117560.0,117550.0,0.001]
[1752852308335,1.28773674,117560.0,117550.0,0.001]
[1752852308532,0.3508107,117550.0,117540.0,0.35691141]
[1752852308736,0.4830207,117550.0,117540.0,0.38933141]
[1752852308938,0.4830207,117550.0,117540.0,0.82692145]
[1752852309238,0.4830207,117550.0,117540.0,0.86438145]
[1752852309431,0.3059684,117560.0,117550.0,0.1700507]
[1752852309634,0.5478284,117560.0,117550.0,0.41593191]
[1752852309834,0.5053171,117560.0,117550.0,0.3769407]
[1752852310034,0.4628073,117560.0,117550.0,0.43807191]
[1752852310231,0.4618073,117560.0,117550.0,0.87566195]
[1752852310434,0.4618073,117560.0,117550.0,0.43807191]
[1752852310737,0.4830173,117560.0,117550.0,0.43807191]
[1752852311241,0.4830173,117560.0,117550.0,0.26802121]
[1752852311537,0.4145373,117560.0,117550.0,0.95085702]
[1752852311738,0.4618073,117560.0,117550.0,0.43807191]
[1752852311940,0.4618073,117560.0,117550.0,0.95085702]
[1752852312135,0.4618073,117560.0,117550.0,0.26802121]
[1752852312341,0.4850173,117560.0,117550.0,0.26902121]
[1752852312536,0.4850173,117560.0,117550.0,0.21521121]
[1752852312731,0.8458173,117560.0,117550.0,0.21521121]
[1752852312940,0.8458173,117560.0,117550.0,0.09553121]
[1752852313141,0.8458173,117560.0,117550.0,0.07339121]
[1752852313535,0.8458173,117560.0,117550.0,0.01226]
[1752852313735,0.3750173,117560.0,117550.0,0.2866708]
[1752852314044,0.3750173,117560.0,117550.0,0.95185712]
[1752852314342,0.3750173,117560.0,117550.0,0.43907201]
[1752852314840,0.4850173,117560.0,117550.0,0.43907191]
[1752852315431,0.4628073,117560.0,117550.0,0.43907191]
[1752852315832,0.3528073,117560.0,117550.0,0.43907191]
[1752852316230,0.3528073,117560.0,117550.0,0.95185702]
[1752852316442,0.3527963,117560.0,117550.0,0.95185702]
[1752852316740,0.3527963,117560.0,117550.0,0.79987191]
[1752852317041,0.18276,117560.0,117550.0,1.25152581]
[1752852317236,0.05522,117560.0,117550.0,0.7387407]
[1752852317437,0.2252563,117560.0,117550.0,1.25152581]
[1752852317933,0.05522,117560.0,117550.0,1.25152581]
[1752852318331,0.2252563,117560.0,117550.0,1.25152581]
[1752852318636,0.05522,117560.0,117550.0,1.25152581]
[1752852319033,0.10212,117580.0,117570.0,0.3769118]
[1752852319235,0.2232273,117580.0,117570.0,1.25049691]
[1752852319435,0.2232273,117580.0,117570.0,1.32666451]
[1752852319633,0.4329773,117580.0,117570.0,0.34416986]
[1752852319831,0.4329773,117580.0,117570.0,0.20689]
[1752852320033,1.30656241,117580.0,117570.0,0.06112179]
[1752852320231,0.2232563,117560.0,117550.0,0.7337673]
[1752852320440,0.2232563,117560.0,117550.0,0.7387397]
[1752852320441,0.4830063,117560.0,117550.0,0.7387397]
[1752852320641,0.4830063,117560.0,117550.0,0.8149073]
[1752852321041,0.4830063,117560.0,117550.0,0.7387397]
[1752852321236,0.05322,117560.0,117550.0,1.25152481]
[1752852321435,0.05422,117560.0,117550.0,1.31364648]
[1752852321640,0.001,117560.0,117550.0,1.31364648]
[1752852321839,0.001,117560.0,117550.0,1.31364454]
[1752852322240,0.001,117560.0,117550.0,1.25252481]
[1752852322745,0.001,117560.0,117550.0,0.7397397]
[1752852323045,0.3517965,117560.0,117550.0,0.56969]
[1752852323243,0.4840065,117560.0,117550.0,0.3789409]
[1752852323540,0.4840065,117560.0,117550.0,0.3779409]
[1752852323746,0.4840065,117560.0,117550.0,0.1927876]
[1752852323946,0.4840065,117560.0,117550.0,0.1429876]
[1752852324448,0.4830065,117560.0,117550.0,0.2358709]
[1752852324636,0.4850065,117560.0,117550.0,0.2866709]
[1752852324841,0.4850065,117560.0,117550.0,0.3241309]
[1752852325143,0.4850065,117560.0,117550.0,0.43906832]
[1752852325538,0.4840065,117560.0,117550.0,0.95185343]
[1752852325742,0.4617965,117560.0,117550.0,0.95185343]
[1752852325945,0.29276,117560.0,117550.0,0.95385343]
[1752852326345,0.4627964,117560.0,117550.0,0.95385343]
[1752852326844,0.4850064,117560.0,117550.0,0.78380253]
[1752852327050,0.4850064,117560.0,117550.0,0.27101742]
[1752852327351,0.4850064,117560.0,117550.0,0.15608]
[1752852327746,0.4850064,117560.0,117550.0,0.3261309]
[1752852328250,0.4850064,117560.0,117550.0,0.3799409]
[1752852328447,0.002,117560.0,117550.0,1.25352601]
[1752852329752,0.002,117560.0,117550.0,1.32969361]
[1752852330851,0.002,117560.0,117550.0,0.8169085]
[1752852331051,0.002,117560.0,117550.0,1.32969361]
[1752852331852,0.45207084,117590.0,117580.0,0.2717379]
[1752852332047,0.45207084,117590.0,117580.0,0.88783301]
[1752852332350,0.58388084,117590.0,117580.0,0.20504]
[1752852332648,0.94468084,117590.0,117580.0,0.20504]
[1752852333051,0.96458927,117590.0,117580.0,0.14886]
[1752852333349,0.60978744,117590.0,117580.0,0.14986]
[1752852333854,0.60978744,117590.0,117580.0,0.3198679]
[1752852334050,0.60978744,117590.0,117580.0,0.3760479]
[1752852334255,0.35478044,117590.0,117580.0,0.3760479]
[1752852334452,0.35478044,117590.0,117580.0,0.20604]
[1752852334955,0.71558044,117590.0,117580.0,0.14986]
[1752852335157,0.71558044,117590.0,117580.0,0.01214]
[1752852335448,0.35178044,117590.0,117580.0,0.2546179]
[1752852335648,0.31324,117590.0,117580.0,1.25263301]
[1752852335848,0.003,117590.0,117580.0,1.25263301]
[1752852336049,0.001,117590.0,117580.0,1.25363301]
[1752852336252,0.002,117590.0,117580.0,1.25363301]
[1752852336456,0.10203,117610.0,117600.0,0.2493691]
[1752852336751,0.10203,117610.0,117600.0,1.24860421]
[1752852337355,0.11401,117620.0,117610.0,0.2493546]
[1752852337551,0.11401,117620.0,117610.0,0.74418519]
[1752852337751,0.11401,117620.0,117610.0,1.2569703]
[1752852337957,0.00112,117620.0,117610.0,1.2569703]
[1752852339748,0.00212,117620.0,117610.0,1.2579703]
[1752852339948,0.00212,117620.0,117610.0,1.4280183]
[1752852340860,0.00212,117620.0,117610.0,0.91623319]
[1752852341051,0.00212,117620.0,117610.0,1.4290183]
[1752852341758,0.00212,117620.0,117610.0,1.4280183]
[1752852341951,0.00212,117620.0,117610.0,1.4300183]
[1752852343670,0.00212,117620.0,117610.0,1.2599703]
[1752852345770,0.4333154,117640.0,117630.0,0.20504]
[1752852345973,0.5651254,117640.0,117630.0,0.20504]
[1752852346167,0.5651254,117640.0,117630.0,0.01114]
[1752852346466,0.3701756,117630.0,117620.0,0.01114]
[1752852346664,0.3701756,117630.0,117610.0,0.41535059]
[1752852346665,0.2990701,117620.0,117610.0,0.41535059]
[1752852346866,0.2990701,117620.0,117610.0,0.003]
[1752852346867,1.1509901,117620.0,117610.0,0.003]
[1752852347065,1.1909901,117620.0,117610.0,0.002]
[1752852347671,1.1909901,117620.0,117580.0,1.07862511]
[1752852347672,0.3702334,117590.0,117580.0,1.07862511]
[1752852347868,0.3702334,117590.0,117580.0,0.50966]
[1752852348074,0.3702334,117590.0,117580.0,0.6796679]
[1752852348469,0.3702334,117590.0,117580.0,0.74431277]
[1752852348670,0.3702334,117590.0,117580.0,1.25709788]
[1752852348865,0.06358,117590.0,117580.0,1.25709788]
[1752852349076,0.3562875,117600.0,117590.0,0.2493835]
[1752852349270,0.5009175,117600.0,117590.0,0.71782511]
[1752852349477,0.5009175,117600.0,117590.0,0.20504]
[1752852349677,0.5227275,117600.0,117590.0,0.88781861]
[1752852351074,0.5227275,117600.0,117590.0,0.89081861]
[1752852351274,0.5237275,117600.0,117590.0,0.20804]
[1752852351777,0.8845275,117600.0,117590.0,0.15186]
[1752852352084,0.8855275,117600.0,117590.0,0.01514]
[1752852353176,0.8855275,117600.0,117590.0,0.1851335]
[1752852353377,0.8855275,117600.0,117590.0,0.2546035]
[1752852353874,0.8855275,117600.0,117590.0,0.89181861]
[1752852353875,0.4822306,117600.0,117590.0,0.89181861]
[1752852354080,0.31224,117600.0,117590.0,0.89181861]
[1752852354381,0.4822191,117600.0,117590.0,0.89181861]
[1752852354878,0.4822191,117600.0,117590.0,0.3790335]
[1752852355079,0.31224,117600.0,117590.0,1.25261861]
[1752852355274,0.4822191,117600.0,117590.0,1.25261861]
[1752852355478,0.4822191,117600.0,117590.0,0.89181861]
[1752852355781,0.4822191,117600.0,117590.0,0.11664]
[1752852355982,0.4822191,117600.0,117590.0,0.01514]
[1752852356278,0.4822191,117600.0,117590.0,0.1851333]
[1752852357174,0.4822191,117600.0,117590.0,0.2546033]
[1752852357578,0.4822191,117600.0,117590.0,0.2866333]
[1752852357778,0.4822191,117600.0,117590.0,0.3228533]
[1752852357977,0.4822191,117600.0,117590.0,0.3790333]
[1752852358181,0.31224,117600.0,117590.0,1.25261841]
[1752852358381,0.002,117600.0,117590.0,1.25261841]
[1752852359080,0.37019,117630.0,117620.0,0.3055201]
[1752852359280,0.4801757,117630.0,117620.0,0.20504]
[1752852359476,0.4801757,117630.0,117620.0,0.3749901]
[1752852359972,0.4801757,117630.0,117620.0,0.14886]
[1752852360676,0.8409757,117630.0,117620.0,0.11264]
[1752852360872,0.8429757,117630.0,117620.0,0.11364]
[1752852361073,0.8429757,117630.0,117620.0,0.01214]
[1752852361279,1.35300771,117630.0,117620.0,0.001]
[1752852361483,1.83579282,117630.0,117620.0,0.001]
[1752852361676,1.83579282,117630.0,117590.0,0.1045]
[1752852361677,0.169979,117600.0,117590.0,0.1045]
[1752852361872,0.399499,117600.0,117590.0,0.2424634]
[1752852362073,0.399499,117600.0,117590.0,0.1729934]
[1752852362576,0.399499,117600.0,117580.0,1.25924848]
[1752852362577,0.1699934,117590.0,117580.0,1.25924848]
[1752852362875,0.2692034,117590.0,117580.0,1.25924848]
[1752852363283,0.09921,117590.0,117580.0,1.25924848]
[1752852363479,0.05373,117590.0,117580.0,1.25924848]
[1752852363786,0.2905104,117600.0,117590.0,0.2921934]
[1752852364086,0.2905104,117600.0,117590.0,0.80497851]
[1752852364283,0.2995104,117600.0,117590.0,0.292193]
[1752852364481,0.2995104,117600.0,117590.0,0.1222]
[1752852364982,0.2995104,117600.0,117590.0,0.292193]
[1752852365180,0.2995104,117600.0,117590.0,0.652993]
[1752852365373,0.2995104,117600.0,117590.0,0.80497811]
[1752852365772,0.2691885,117600.0,117590.0,1.16577811]
[1752852366183,0.09921,117600.0,117590.0,1.16577811]
[1752852366581,0.09921,117610.0,117600.0,0.2434085]
[1752852366779,0.75434364,117630.0,117620.0,0.2187196]
[1752852366988,0.64905264,117630.0,117620.0,0.80493471]
[1752852367182,0.11831754,117630.0,117620.0,0.80493471]
[1752852367380,0.11831754,117630.0,117620.0,1.16573471]
[1752852367984,0.28825274,117630.0,117620.0,1.16573471]
[1752852368481,0.11831754,117630.0,117620.0,1.16573471]
[1752852368682,0.10021,117630.0,117620.0,0.6559496]
[1752852368985,0.05473,117630.0,117620.0,1.16873471]
[1752852369688,0.001,117630.0,117620.0,1.16873471]
[1752852369885,0.001,117630.0,117620.0,0.6559496]
[1752852370085,0.001,117630.0,117620.0,1.16873471]
[1752852370386,0.002,117630.0,117620.0,1.17073471]
[1752852371283,0.09921,117650.0,117640.0,0.1699208]
[1752852371587,0.09921,117650.0,117640.0,0.80490591]
[1752852371784,0.05373,117650.0,117640.0,0.80490591]
[1752852371985,0.2894205,117660.0,117650.0,0.2921064]
[1752852372185,0.2691105,117660.0,117650.0,0.80489151]
[1752852372888,0.2691105,117660.0,117650.0,0.30045492]
[1752852373088,0.2894205,117660.0,117650.0,0.13054852]
[1752852373290,0.2894205,117660.0,117650.0,0.30045492]
[1752852373782,0.2691105,117660.0,117650.0,0.81324003]
[1752852374587,0.2904205,117660.0,117650.0,0.30145492]
[1752852374788,0.2914205,117660.0,117650.0,0.81424003]
[1752852375187,0.05573,117660.0,117650.0,0.88917003]
[1752852375389,0.05573,117660.0,117650.0,1.25197003]
[1752852375991,0.2256219,117660.0,117650.0,1.25197003]
[1752852376291,0.2818019,117660.0,117650.0,0.73918492]
[1752852376490,0.11191,117660.0,117650.0,1.25197003]
[1752852376688,0.002,117660.0,117650.0,1.25197003]
[1752852377291,0.002,117660.0,117650.0,1.25297003]
[1752852377894,0.1718919,117660.0,117650.0,1.25297003]
[1752852378092,0.002,117660.0,117650.0,1.25297003]
[1752852379288,0.002,117660.0,117650.0,2.03243281]
[1752852379685,0.6813771,117690.0,117670.0,0.09759]
[1752852379891,0.3222322,117690.0,117680.0,0.87977861]
[1752852380097,0.2797697,117690.0,117680.0,1.24057861]
[1752852380289,0.2797591,117690.0,117680.0,1.24057861]
[1752852380491,0.2342791,117690.0,117680.0,0.87977861]
[1752852380795,0.7238212,117700.0,117680.0,0.96470741]
[1752852380995,0.8561012,117700.0,117690.0,0.17643]
[1752852381196,0.8561012,117700.0,117690.0,0.19713]
[1752852382188,0.8581012,117700.0,117690.0,0.37565788]
[1752852382391,0.8581012,117700.0,117690.0,0.19713]
[1752852382794,0.8621012,117700.0,117690.0,0.3679791]
[1752852382996,0.8621012,117700.0,117690.0,0.1454]
[1752852383198,0.8621012,117700.0,117690.0,0.3152491]
[1752852383394,0.7771779,117700.0,117690.0,0.88076421]
[1752852383792,0.20407,117700.0,117690.0,0.88076421]
[1752852383990,0.3739046,117700.0,117690.0,0.88076421]
[1752852384187,0.20407,117700.0,117690.0,0.88076421]
[1752852384390,0.3739046,117700.0,117690.0,0.88076421]
[1752852384591,0.18376,117700.0,117690.0,0.88076421]
[1752852384896,0.18376,117700.0,117690.0,1.24156421]
[1752852385288,0.006,117700.0,117690.0,1.24156421]
[1752852386800,0.006,117700.0,117690.0,1.25003696]
[1752852387397,0.1758347,117700.0,117690.0,0.73725185]
[1752852387592,0.2857447,117700.0,117690.0,0.73725185]
[1752852387893,0.3739047,117700.0,117690.0,1.25003696]
[1752852388299,0.18476,117700.0,117690.0,1.25103696]
[1752852388500,0.3545947,117700.0,117690.0,1.25103696]
[1752852388899,0.3545947,117700.0,117690.0,0.72038786]
[1752852389101,0.3749047,117700.0,117690.0,0.89023706]
[1752852389295,0.7757047,117700.0,117690.0,0.19913]
[1752852389495,0.7757047,117700.0,117690.0,0.002]
[1752852389695,1.28848981,117700.0,117690.0,0.002]
[1752852390299,0.4149047,117700.0,117690.0,0.3689792]
[1752852390498,0.3749048,117700.0,117690.0,0.88176431]
[1752852390899,0.4749048,117700.0,117690.0,0.19913]